Workbook

Sheet Sheet1
K1: Budget Impact with Uncertainty Estimates
A2: Formula to Generate Stochastic Budget Impact Variable: | B2: =gamma.inv(rand(),16,625) | C2: =_xlfn.GAMMA.INV(RAND(),16,625) -> 10926.22784 | K2: Sample Size | L2: Expected Budget Impact | M2: 95% Confidence Interval of Budget Impact: Lower Bound | N2: 95% Confidence Interval of Budget Impact: Upper Bound | O2: Confidence Interval Width Per Patient (on secondary axis)
A3: Gamma distribution was parameterized with the method of moments, to have mean of 10,000 and standard error of 2,500 | K3: Values | L3: =G10*G7 -> 50303496.94 | M3: =G12 -> 49958534.67 | N3: =G13 -> 50648459.21
A4: Iteration | B4: Gamma Distribution Draw | C4: Sorted Gamma Distribution Draws | F4: Model Uncertainty Interval: Lower Bound (per patient) | G4: =C29 -> 5764.700451
A5: 1 | B5: 12427.64758 | C5: 4262.703678 | F5: Model Uncertainty Interval: Upper Bound (per patient) | G5: =C979 -> 15398.22922 | K5: 1 | L5: 10060.69939 | M5: 5182.196166 | N5: 14939.20261 | O5: =(N5-M5)/K5 -> 9757.006444
A6: 2 | B6: 9793.258847 | C6: 4565.441383 | K6: 5 | L6: 50303.49694 | M6: 39394.8321 | N6: 61212.16177 | O6: =(N6-M6)/K6 -> 4363.465933
A7: 3 | B7: 9267.427889 | C7: 4591.737812 | F7: Mean of Model Cost Outcomes | G7: =AVERAGE(C5:C1004) -> 10060.69939 | K7: 10 | L7: 100606.9939 | M7: 85179.81212 | N7: 116034.1756 | O7: 3085.436351
A8: 4 | B8: 11486.24477 | C8: 4735.564809 | F8: Standard Deviation of Model Cost Outcomes | G8: =_xlfn.STDEV.P(C5:C1004) -> 2489.032256 | K8: 15 | L8: 150910.4908 | M8: 132016.1291 | N8: 169804.8525 | O8: 2519.248231
A9: 5 | B9: 6987.27373 | C9: 4748.458899 | K9: 20 | L9: 201213.9878 | M9: 179396.6581 | N9: 223031.3174 | O9: 2181.732967
A10: 6 | B10: 9268.14978 | C10: 4819.025694 | F10: Patients Receiving Treatment (eligible patients*market share) | G10: 5000 | K10: 25 | L10: 251517.4847 | M10: 227124.9686 | N10: 275910.0008 | O10: 1951.401289
A11: 7 | B11: 8715.163392 | C11: 4836.542062 | K11: 30 | L11: 301820.9816 | M11: 275100.319 | N11: 328541.6442 | O11: 1781.377508
A12: 8 | B12: 13318.88054 | C12: 4843.35784 | F12: 95% Confidence Interval of Budget Impact: Lower Bound | G12: =(G7-1.96*(G8/(SQRT(G10))))*G10 -> 49958534.67 | K12: 35 | L12: 352124.4786 | M12: 323262.8643 | N12: 380986.0928 | O12: 1649.235102
A13: 9 | B13: 10745.6818 | C13: 4870.139047 | F13: 95% Confidence Interval of Budget Impact: Upper Bound | G13: =(G7+1.96*(G8/(SQRT(G10))))*G10 -> 50648459.21 | K13: 40 | L13: 402427.9755 | M13: 371573.612 | N13: 433282.339 | O13: 1542.718175
A14: 10 | B14: 9028.387394 | C14: 4911.88086 | K14: 45 | L14: 452731.4724 | M14: 420005.4779 | N14: 485457.4669 | O14: 1454.488644
A15: 11 | B15: 11242.5994 | C15: 4926.487886 | K15: 50 | L15: 503034.9694 | M15: 468538.7423 | N15: 537531.1965 | O15: 1379.849084
A16: 12 | B16: 11688.50192 | C16: 4941.566357 | K16: 55 | L16: 553338.4663 | M16: 517158.5181 | N16: 589518.4145 | O16: 1315.634481
A17: 13 | B17: 13208.53444 | C17: 4985.6726 | K17: 60 | L17: 603641.9633 | M17: 565853.2398 | N17: 641430.6867 | O17: 1259.624116
A18: 14 | B18: 11012.33992 | C18: 5068.154759 | K18: 65 | L18: 653945.4602 | M18: 614613.7098 | N18: 693277.2106 | O18: 1210.207705
A19: 15 | B19: 10227.11307 | C19: 5226.396943 | K19: 70 | L19: 704248.9571 | M19: 663432.4708 | N19: 745065.4435 | O19: 1166.185324
A20: 16 | B20: 8666.400532 | C20: 5323.10651 | K20: 75 | L20: 754552.4541 | M20: 712303.3768 | N20: 796801.5313 | O20: 1126.642059
A21: 17 | B21: 11061.12246 | C21: 5393.171989 | K21: 80 | L21: 804855.951 | M21: 761221.2917 | N21: 848490.6103 | O21: 1090.866483
A22: 18 | B22: 7006.418493 | C22: 5423.032735 | K22: 85 | L22: 855159.4479 | M22: 810181.8706 | N22: 900137.0253 | O22: 1058.295937
A23: 19 | B23: 14463.35516 | C23: 5455.661375 | K23: 90 | L23: 905462.9449 | M23: 859181.3996 | N23: 951744.4901 | O23: 1028.478784
A24: 20 | B24: 5998.97485 | C24: 5467.04576 | K24: 95 | L24: 955766.4418 | M24: 908216.6742 | N24: 1003316.209 | O24: 1001.047739
A25: 21 | B25: 9739.859686 | C25: 5520.664426 | K25: 100 | L25: 1006069.939 | M25: 957284.9065 | N25: 1054854.971 | O25: =(N25-M25)/K25 -> 975.7006444
A26: 22 | B26: 6808.714113 | C26: 5544.105753 | K26: 105 | L26: 1056373.436 | M26: 1006383.653 | N26: 1106363.218 | O26: 952.1863301
A27: 23 | B27: 7743.638882 | C27: 5551.755392 | K27: 110 | L27: 1106676.933 | M27: 1055510.759 | N27: 1157843.106 | O27: 930.2940627
A28: 24 | B28: 8864.153902 | C28: 5645.178162 | K28: 115 | L28: 1156980.43 | M28: 1104664.311 | N28: 1209296.548 | O28: 909.8455423
A29: 25 | B29: 12050.41648 | C29: 5764.700451 | K29: 120 | L29: 1207283.927 | M29: 1153842.601 | N29: 1260725.252 | O29: 890.6887539
A30: 26 | B30: 5943.605888 | C30: 5772.171419 | K30: 125 | L30: 1257587.423 | M30: 1203044.099 | N30: 1312130.748 | O30: 872.6931866
A31: 27 | B31: 12465.79574 | C31: 5822.470823 | K31: 130 | L31: 1307890.92 | M31: 1252267.426 | N31: 1363514.415 | O31: 855.7460746
A32: 28 | B32: 9439.975845 | C32: 5856.259774 | K32: 135 | L32: 1358194.417 | M32: 1301511.332 | N32: 1414877.503 | O32: 839.7494104
A33: 29 | B33: 13237.79562 | C33: 5863.460846 | K33: 140 | L33: 1408497.914 | M33: 1350774.686 | N33: 1466221.143 | O33: 824.617551
A34: 30 | B34: 8424.763746 | C34: 5863.950535 | K34: 145 | L34: 1458801.411 | M34: 1400056.453 | N34: 1517546.369 | O34: 810.2752821
A35: 31 | B35: 12316.87586 | C35: 5914.937837 | K35: 150 | L35: 1509104.908 | M35: 1449355.69 | N35: 1568854.126 | O35: 796.6562402
A36: 32 | B36: 8046.296335 | C36: 5943.605888 | K36: 155 | L36: 1559408.405 | M36: 1498671.53 | N36: 1620145.28 | O36: 783.7016168
A37: 33 | B37: 7799.786175 | C37: 5959.242086 | K37: 160 | L37: 1609711.902 | M37: 1548003.175 | N37: 1671420.629 | O37: 771.3590877
A38: 34 | B38: 9564.157279 | C38: 5980.91926 | E38: Figure 1. Estimated budget impact with confidence intervals by sample size, and budget impact confidence interval width divided by number of patients. | K38: 165 | L38: 1660015.399 | M38: 1597349.89 | N38: 1722680.907 | O38: 759.5819215
A39: 35 | B39: 7230.886684 | C39: 5998.97485 | K39: 170 | L39: 1710318.896 | M39: 1646710.996 | N39: 1773926.796 | O39: 748.3282339
A40: 36 | B40: 13742.68401 | C40: 6025.709227 | K40: 175 | L40: 1760622.393 | M40: 1696085.861 | N40: 1825158.924 | O40: 737.5603598
A41: 37 | B41: 9422.608758 | C41: 6082.873175 | K41: 180 | L41: 1810925.89 | M41: 1745473.901 | N41: 1876377.879 | O41: 727.2443222
A42: 38 | B42: 7739.55957 | C42: 6120.729761 | K42: 185 | L42: 1861229.387 | M42: 1794874.569 | N42: 1927584.204 | O42: 717.3493806
A43: 39 | B43: 8422.558514 | C43: 6123.943004 | K43: 190 | L43: 1911532.884 | M43: 1844287.357 | N43: 1978778.41 | O43: 707.8476447
A44: 40 | B44: 10125.10552 | C44: 6131.358537 | K44: 195 | L44: 1961836.381 | M44: 1893711.791 | N44: 2029960.971 | O44: 698.7137441
A45: 41 | B45: 10784.85925 | C45: 6149.90099 | K45: 200 | L45: 2012139.878 | M45: 1943147.423 | N45: 2081132.332 | O45: 689.9245421
A46: 42 | B46: 16629.98813 | C46: 6156.860124 | K46: 205 | L46: 2062443.374 | M46: 1992593.838 | N46: 2132292.911 | O46: 681.4588897
A47: 43 | B47: 7008.685479 | C47: 6183.905781 | K47: 210 | L47: 2112746.871 | M47: 2042050.643 | N47: 2183443.1 | O47: 673.2974109
A48: 44 | B48: 10068.68851 | C48: 6212.291565 | K48: 215 | L48: 2163050.368 | M48: 2091517.469 | N48: 2234583.267 | O48: 665.4223165
A49: 45 | B49: 10712.51046 | C49: 6284.574664 | K49: 220 | L49: 2213353.865 | M49: 2140993.969 | N49: 2285713.762 | O49: 657.8172403
A50: 46 | B50: 9191.297784 | C50: 6286.799248 | K50: 225 | L50: 2263657.362 | M50: 2190479.814 | N50: 2336834.911 | O50: 650.4670963
A51: 47 | B51: 8731.512159 | C51: 6298.248615 | K51: 230 | L51: 2313960.859 | M51: 2239974.695 | N51: 2387947.024 | O51: 643.3579528
A52: 48 | B52: 17198.48502 | C52: 6310.656733 | K52: 235 | L52: 2364264.356 | M52: 2289478.318 | N52: 2439050.394 | O52: 636.4769212
A53: 49 | B53: 8851.776207 | C53: 6343.0546 | K53: 240 | L53: 2414567.853 | M53: 2338990.406 | N53: 2490145.3 | O53: 629.8120578
A54: 50 | B54: 12200.48579 | C54: 6354.084018 | K54: 245 | L54: 2464871.35 | M54: 2388510.696 | N54: 2541232.004 | O54: 623.3522762
A55: 51 | B55: 6977.243765 | C55: 6383.055832 | K55: 250 | L55: 2515174.847 | M55: 2438038.938 | N55: 2592310.756 | O55: 617.0872702
A56: 52 | B56: 9904.426878 | C56: 6383.614926 | K56: 255 | L56: 2565478.344 | M56: 2487574.895 | N56: 2643381.793 | O56: 611.0074444
A57: 53 | B57: 11139.72047 | C57: 6392.580889 | K57: 260 | L57: 2615781.841 | M57: 2537118.34 | N57: 2694445.342 | O57: 605.1038523
A58: 54 | B58: 8672.005524 | C58: 6405.126848 | K58: 265 | L58: 2666085.338 | M58: 2586669.059 | N58: 2745501.616 | O58: 599.3681414
A59: 55 | B59: 5772.171419 | C59: 6426.641133 | K59: 270 | L59: 2716388.835 | M59: 2636226.847 | N59: 2796550.822 | O59: 593.7925026
A60: 56 | B60: 8666.871027 | C60: 6433.292106 | K60: 275 | L60: 2766692.332 | M60: 2685791.508 | N60: 2847593.155 | O60: 588.3696264
A61: 57 | B61: 10369.9461 | C61: 6444.669371 | K61: 280 | L61: 2816995.829 | M61: 2735362.856 | N61: 2898628.801 | O61: 583.0926622
A62: 58 | B62: 10882.35368 | C62: 6448.802537 | K62: 285 | L62: 2867299.325 | M62: 2784940.712 | N62: 2949657.939 | O62: 577.9551817
A63: 59 | B63: 11859.30798 | C63: 6451.371172 | K63: 290 | L63: 2917602.822 | M63: 2834524.906 | N63: 3000680.739 | O63: 572.9511466
A64: 60 | B64: 8620.707422 | C64: 6509.651502 | K64: 295 | L64: 2967906.319 | M64: 2884115.275 | N64: 3051697.364 | O64: 568.0748779
A65: 61 | B65: 8201.739496 | C65: 6521.77966 | K65: 300 | L65: 3018209.816 | M65: 2933711.662 | N65: 3102707.971 | O65: 563.3210297
A66: 62 | B66: 10241.90012 | C66: 6523.18826 | K66: 305 | L66: 3068513.313 | M66: 2983313.917 | N66: 3153712.709 | O66: 558.6845638
A67: 63 | B67: 9846.583209 | C67: 6528.307206 | K67: 310 | L67: 3118816.81 | M67: 3032921.897 | N67: 3204711.723 | O67: 554.1607277
A68: 64 | B68: 7870.535138 | C68: 6529.678693 | K68: 315 | L68: 3169120.307 | M68: 3082535.464 | N68: 3255705.15 | O68: 549.745034
A69: 65 | B69: 7696.631551 | C69: 6532.41858 | K69: 320 | L69: 3219423.804 | M69: 3132154.485 | N69: 3306693.123 | O69: 545.4332416
A70: 66 | B70: 8689.698914 | C70: 6536.753809 | K70: 325 | L70: 3269727.301 | M70: 3181778.833 | N70: 3357675.769 | O70: =(N70-M70)/K70 -> 541.2213389
A71: 67 | B71: 8944.119472 | C71: 6537.906869 | K71: 330 | L71: 3320030.798 | M71: 3231408.386 | N71: 3408653.21 | O71: 537.1055276
A72: 68 | B72: 11451.32707 | C72: 6539.491115 | K72: 335 | L72: 3370334.295 | M72: 3281043.025 | N72: 3459625.565 | O72: 533.0822085
A73: 69 | B73: 9831.014218 | C73: 6563.897078 | K73: 340 | L73: 3420637.792 | M73: 3330682.637 | N73: 3510592.946 | O73: 529.1479687
A74: 70 | B74: 7625.063002 | C74: 6579.197288 | K74: 345 | L74: 3470941.289 | M74: 3380327.113 | N74: 3561555.464 | O74: 525.2995688
A75: 71 | B75: 9880.866697 | C75: 6600.356145 | K75: 350 | L75: 3521244.786 | M75: 3429976.348 | N75: 3612513.224 | O75: 521.5339319
A76: 72 | B76: 10071.49049 | C76: 6600.972058 | K76: 355 | L76: 3571548.283 | M76: 3479630.239 | N76: 3663466.326 | O76: 517.8481336
A77: 73 | B77: 11394.69307 | C77: 6636.970346 | K77: 360 | L77: 3621851.78 | M77: 3529288.689 | N77: 3714414.87 | O77: 514.2393918
A78: 74 | B78: 8614.075709 | C78: 6662.538505 | K78: 365 | L78: 3672155.276 | M78: 3578951.603 | N78: 3765358.95 | O78: 510.7050586
A79: 75 | B79: 7028.762851 | C79: 6664.354798 | K79: 370 | L79: 3722458.773 | M79: 3628618.89 | N79: 3816298.657 | O79: 507.2426115
A80: 76 | B80: 11456.41987 | C80: 6711.815979 | K80: 375 | L80: 3772762.27 | M80: 3678290.462 | N80: 3867234.079 | O80: 503.8496462
A81: 77 | B81: 9270.174094 | C81: 6713.115423 | K81: 380 | L81: 3823065.767 | M81: 3727966.232 | N81: 3918165.302 | O81: 500.5238696
A82: 78 | B82: 9599.628502 | C82: 6717.975465 | K82: 385 | L82: 3873369.264 | M82: 3777646.119 | N82: 3969092.41 | O82: 497.2630931
A83: 79 | B83: 9759.744298 | C83: 6749.595216 | K83: 390 | L83: 3923672.761 | M83: 3827330.042 | N83: 4020015.48 | O83: 494.0652265
A84: 80 | B84: 9259.107278 | C84: 6750.604665 | K84: 395 | L84: 3973976.258 | M84: 3877017.924 | N84: 4070934.592 | O84: 490.9282728
A85: 81 | B85: 7038.916535 | C85: 6787.67944 | K85: 400 | L85: 4024279.755 | M85: 3926709.691 | N85: 4121849.819 | O85: 487.8503222
A86: 82 | B86: 4565.441383 | C86: 6795.363194 | K86: 405 | L86: 4074583.252 | M86: 3976405.268 | N86: 4172761.235 | O86: 484.8295481
A87: 83 | B87: 11695.1692 | C87: 6800.1858 | K87: 410 | L87: 4124886.749 | M87: 4026104.587 | N87: 4223668.91 | O87: 481.864202
A88: 84 | B88: 8087.642024 | C88: 6801.697281 | K88: 415 | L88: 4175190.246 | M88: 4075807.579 | N88: 4274572.912 | O88: 478.9526091
A89: 85 | B89: 10048.24567 | C89: 6808.714113 | K89: 420 | L89: 4225493.743 | M89: 4125514.178 | N89: 4325473.307 | O89: 476.093165
A90: 86 | B90: 7722.803867 | C90: 6814.20316 | K90: 425 | L90: 4275797.24 | M90: 4175224.319 | N90: 4376370.16 | O90: 473.2843313
A91: 87 | B91: 8669.083026 | C91: 6817.135881 | K91: 430 | L91: 4326100.737 | M91: 4224937.941 | N91: 4427263.533 | O91: 470.5246324
A92: 88 | B92: 8830.555613 | C92: 6844.802235 | K92: 435 | L92: 4376404.234 | M92: 4274654.982 | N92: 4478153.485 | O92: 467.8126522
A93: 89 | B93: 9175.177814 | C93: 6846.031478 | K93: 440 | L93: 4426707.731 | M93: 4324375.384 | N93: 4529040.077 | O93: 465.1470314
A94: 90 | B94: 9573.554173 | C94: 6859.26872 | K94: 445 | L94: 4477011.227 | M94: 4374099.089 | N94: 4579923.366 | O94: 462.5264639
A95: 91 | B95: 8525.038699 | C95: 6868.026556 | K95: 450 | L95: 4527314.724 | M95: 4423826.043 | N95: 4630803.406 | O95: 459.9496947
A96: 92 | B96: 9714.774301 | C96: 6876.711409 | K96: 455 | L96: 4577618.221 | M96: 4473556.191 | N96: 4681680.252 | O96: 457.4155173
A97: 93 | B97: 7977.611374 | C97: 6880.178349 | K97: 460 | L97: 4627921.718 | M97: 4523289.481 | N97: 4732553.956 | O97: 454.9227712
A98: 94 | B98: 6343.0546 | C98: 6885.514308 | K98: 465 | L98: 4678225.215 | M98: 4573025.861 | N98: 4783424.569 | O98: 452.4703394
A99: 95 | B99: 6025.709227 | C99: 6888.405371 | K99: 470 | L99: 4728528.712 | M99: 4622765.283 | N99: 4834292.142 | O99: 450.0571471
A100: 96 | B100: 10220.08782 | C100: 6893.664345 | K100: 475 | L100: 4778832.209 | M100: 4672507.696 | N100: 4885156.722 | O100: 447.6821587
A101: 97 | B101: 16063.34243 | C101: 6908.055477 | K101: 480 | L101: 4829135.706 | M101: 4722253.056 | N101: 4936018.356 | O101: 445.3443769
A102: 98 | B102: 13440.051 | C102: 6917.11004 | K102: 485 | L102: 4879439.203 | M102: 4772001.314 | N102: 4986877.092 | O102: 443.0428402
A103: 99 | B103: 8126.213152 | C103: 6923.502964 | K103: 490 | L103: 4929742.7 | M103: 4821752.428 | N103: 5037732.972 | O103: 440.7766215
A104: 100 | B104: 6579.197288 | C104: 6935.827881 | K104: 495 | L104: 4980046.197 | M104: 4871506.352 | N104: 5088586.041 | O104: 438.5448268
A105: 101 | B105: 10452.67742 | C105: 6943.337604 | K105: 500 | L105: 5030349.694 | M105: 4921263.045 | N105: 5139436.342 | O105: 436.3465933
A106: 102 | B106: 11405.89755 | C106: 6963.25127 | K106: 505 | L106: 5080653.191 | M106: 4971022.466 | N106: 5190283.915 | O106: 434.1810882
A107: 103 | B107: 11680.37534 | C107: 6974.363825 | K107: 510 | L107: 5130956.688 | M107: 5020784.573 | N107: 5241128.802 | O107: 432.0475073
A108: 104 | B108: 8079.403512 | C108: 6974.463621 | K108: 515 | L108: 5181260.185 | M108: 5070549.328 | N108: 5291971.041 | O108: 429.9450738
A109: 105 | B109: 12303.46536 | C109: 6977.243765 | K109: 520 | L109: 5231563.682 | M109: 5120316.692 | N109: 5342810.671 | O109: 427.8730373
A110: 106 | B110: 11269.45213 | C110: 6987.27373 | K110: 525 | L110: 5281867.178 | M110: 5170086.627 | N110: 5393647.73 | O110: 425.8306722
A111: 107 | B111: 13450.94924 | C111: 6996.498446 | K111: 530 | L111: 5332170.675 | M111: 5219859.097 | N111: 5444482.254 | O111: 423.8172772
A112: 108 | B112: 8655.008134 | C112: 6997.158552 | K112: 535 | L112: 5382474.172 | M112: 5269634.066 | N112: 5495314.279 | O112: 421.8321736
A113: 109 | B113: 6876.711409 | C113: 7006.418493 | K113: 540 | L113: 5432777.669 | M113: 5319411.499 | N113: 5546143.84 | O113: 419.8747052
A114: 110 | B114: 9450.851842 | C114: 7008.685479 | K114: 545 | L114: 5483081.166 | M114: 5369191.362 | N114: 5596970.971 | O114: 417.9442365
A115: 111 | B115: 8674.534131 | C115: 7009.126621 | K115: 550 | L115: 5533384.663 | M115: 5418973.621 | N115: 5647795.705 | O115: 416.0401527
A116: 112 | B116: 13123.8187 | C116: 7012.582485 | K116: 555 | L116: 5583688.16 | M116: 5468758.245 | N116: 5698618.076 | O116: 414.161858
A117: 113 | B117: 9344.14707 | C117: 7017.943971 | K117: 560 | L117: 5633991.657 | M117: 5518545.2 | N117: 5749438.114 | O117: 412.3087755
A118: 114 | B118: 7575.920269 | C118: 7018.766917 | K118: 565 | L118: 5684295.154 | M118: 5568334.456 | N118: 5800255.852 | O118: 410.4803462
A119: 115 | B119: 6662.538505 | C119: 7025.404425 | K119: 570 | L119: 5734598.651 | M119: 5618125.983 | N119: 5851071.319 | O119: 408.6760282
A120: 116 | B120: 7762.212564 | C120: 7028.762851 | K120: 575 | L120: 5784902.148 | M120: 5667919.75 | N120: 5901884.546 | O120: 406.8952963
A121: 117 | B121: 7346.119322 | C121: 7035.961725 | K121: 580 | L121: 5835205.645 | M121: 5717715.729 | N121: 5952695.561 | O121: 405.137641
A122: 118 | B122: 12020.17757 | C122: 7038.916535 | K122: 585 | L122: 5885509.142 | M122: 5767513.891 | N122: 6003504.393 | O122: 403.4025682
A123: 119 | B123: 15398.22922 | C123: 7042.316349 | K123: 590 | L123: 5935812.639 | M123: 5817314.207 | N123: 6054311.07 | O123: 401.6895984
A124: 120 | B124: 11628.02188 | C124: 7067.243763 | K124: 595 | L124: 5986116.136 | M124: 5867116.651 | N124: 6105115.62 | O124: 399.9982663
A125: 121 | B125: 16309.29675 | C125: 7078.477584 | K125: 600 | L125: 6036419.633 | M125: 5916921.197 | N125: 6155918.069 | O125: 398.3281201
A126: 122 | B126: 14661.88418 | C126: 7092.117707 | K126: 605 | L126: 6086723.129 | M126: 5966727.816 | N126: 6206718.443 | O126: 396.6787212
A127: 123 | B127: 7841.599692 | C127: 7099.723091 | K127: 610 | L127: 6137026.626 | M127: 6016536.485 | N127: 6257516.768 | O127: 395.0496436
A128: 124 | B128: 9096.216182 | C128: 7099.929529 | K128: 615 | L128: 6187330.123 | M128: 6066347.178 | N128: 6308313.069 | O128: 393.4404734
A129: 125 | B129: 5764.700451 | C129: 7130.169238 | K129: 620 | L129: 6237633.62 | M129: 6116159.87 | N129: 6359107.371 | O129: 391.8508084
A130: 126 | B130: 9904.568364 | C130: 7138.894231 | K130: 625 | L130: 6287937.117 | M130: 6165974.537 | N130: 6409899.698 | O130: 390.2802578
A131: 127 | B131: 9033.326968 | C131: 7148.832454 | K131: 630 | L131: 6338240.614 | M131: 6215791.155 | N131: 6460690.073 | O131: 388.7284414
A132: 128 | B132: 9683.832638 | C132: 7160.081252 | K132: 635 | L132: 6388544.111 | M132: 6265609.702 | N132: 6511478.52 | O132: 387.1949899
A133: 129 | B133: 10670.03119 | C133: 7164.613987 | K133: 640 | L133: 6438847.608 | M133: 6315430.154 | N133: 6562265.062 | O133: 385.6795439
A134: 130 | B134: 9884.543793 | C134: 7173.981263 | K134: 645 | L134: 6489151.105 | M134: 6365252.489 | N134: 6613049.72 | O134: =(N134-M134)/K134 -> 384.1817536
A135: 131 | B135: 8465.815593 | C135: 7174.567553 | K135: 650 | L135: 6539454.602 | M135: 6415076.686 | N135: 6663832.518 | O135: 382.7012789
A136: 132 | B136: 7731.220151 | C136: 7183.357678 | K136: 655 | L136: 6589758.099 | M136: 6464902.723 | N136: 6714613.475 | O136: 381.2377887
A137: 133 | B137: 10397.8352 | C137: 7187.374751 | K137: 660 | L137: 6640061.596 | M137: 6514730.579 | N137: 6765392.613 | O137: 379.7909607
A138: 134 | B138: 6523.18826 | C138: 7204.38761 | K138: 665 | L138: 6690365.093 | M138: 6564560.233 | N138: 6816169.953 | O138: 378.3604812
A139: 135 | B139: 12696.05325 | C139: 7210.785472 | K139: 670 | L139: 6740668.59 | M139: 6614391.665 | N139: 6866945.515 | O139: 376.9460446
A140: 136 | B140: 12390.17482 | C140: 7217.40423 | K140: 675 | L140: 6790972.087 | M140: 6664224.855 | N140: 6917719.318 | O140: 375.5473531
A141: 137 | B141: 9889.42473 | C141: 7225.72207 | K141: 680 | L141: 6841275.584 | M141: 6714059.784 | N141: 6968491.383 | O141: 374.1641169
A142: 138 | B142: 9371.913236 | C142: 7230.886684 | K142: 685 | L142: 6891579.08 | M142: 6763896.432 | N142: 7019261.729 | O142: 372.7960534
A143: 139 | B143: 8985.814707 | C143: 7242.529004 | K143: 690 | L143: 6941882.577 | M143: 6813734.781 | N143: 7070030.374 | O143: 371.4428872
A144: 140 | B144: 9332.737094 | C144: 7248.065073 | K144: 695 | L144: 6992186.074 | M144: 6863574.813 | N144: 7120797.336 | O144: 370.10435
A145: 141 | B145: 11670.46135 | C145: 7249.984464 | K145: 700 | L145: 7042489.571 | M145: 6913416.508 | N145: 7171562.634 | O145: 368.7801799
A146: 142 | B146: 10572.40045 | C146: 7283.871398 | K146: 705 | L146: 7092793.068 | M146: 6963259.85 | N146: 7222326.286 | O146: 367.4701218
A147: 143 | B147: 8583.079465 | C147: 7295.18975 | K147: 710 | L147: 7143096.565 | M147: 7013104.821 | N147: 7273088.309 | O147: 366.1739269
A148: 144 | B148: 9825.322613 | C148: 7297.044498 | K148: 715 | L148: 7193400.062 | M148: 7062951.404 | N148: 7323848.721 | O148: 364.8913523
A149: 145 | B149: 12792.73137 | C149: 7300.032192 | K149: 720 | L149: 7243703.559 | M149: 7112799.581 | N149: 7374607.537 | O149: 363.6221611
A150: 146 | B150: 12238.24942 | C150: 7311.269934 | K150: 725 | L150: 7294007.056 | M150: 7162649.337 | N150: 7425364.775 | O150: 362.3661222
A151: 147 | B151: 10753.01774 | C151: 7314.574469 | K151: 730 | L151: 7344310.553 | M151: 7212500.654 | N151: 7476120.452 | O151: 361.1230101
A152: 148 | B152: 8098.094412 | C152: 7319.139541 | K152: 735 | L152: 7394614.05 | M152: 7262353.518 | N152: 7526874.582 | O152: 359.8926044
A153: 149 | B153: 5959.242086 | C153: 7336.92327 | K153: 740 | L153: 7444917.547 | M153: 7312207.911 | N153: 7577627.182 | O153: 358.6746903
A154: 150 | B154: 10856.14447 | C154: 7337.352524 | K154: 745 | L154: 7495221.044 | M154: 7362063.82 | N154: 7628378.268 | O154: 357.4690577
A155: 151 | B155: 9781.079571 | C155: 7346.119322 | K155: 750 | L155: 7545524.541 | M155: 7411921.228 | N155: 7679127.854 | O155: 356.2755015
A156: 152 | B156: 6123.943004 | C156: 7346.884777 | K156: 755 | L156: 7595828.038 | M156: 7461780.12 | N156: 7729875.955 | O156: 355.0938217
A157: 153 | B157: 11533.98354 | C157: 7349.001292 | K157: 760 | L157: 7646131.535 | M157: 7511640.482 | N157: 7780622.587 | O157: 353.9238224
A158: 154 | B158: 8373.659979 | C158: 7356.247487 | K158: 765 | L158: 7696435.031 | M158: 7561502.299 | N158: 7831367.763 | O158: 352.7653125
A159: 155 | B159: 6917.11004 | C159: 7372.477941 | K159: 770 | L159: 7746738.528 | M159: 7611365.558 | N159: 7882111.499 | O159: 351.6181052
A160: 156 | B160: 9374.457885 | C160: 7404.133534 | K160: 775 | L160: 7797042.025 | M160: 7661230.243 | N160: 7932853.807 | O160: 350.4820179
A161: 157 | B161: 11365.51508 | C161: 7412.469494 | K161: 780 | L161: 7847345.522 | M161: 7711096.342 | N161: 7983594.702 | O161: 349.356872
A162: 158 | B162: 10605.62847 | C162: 7414.354436 | K162: 785 | L162: 7897649.019 | M162: 7760963.841 | N162: 8034334.198 | O162: 348.2424932
A163: 159 | B163: 10741.96395 | C163: 7432.073497 | K163: 790 | L163: 7947952.516 | M163: 7810832.725 | N163: 8085072.307 | O163: 347.1387107
A164: 160 | B164: 7404.133534 | C164: 7438.650097 | K164: 795 | L164: 7998256.013 | M164: 7860702.983 | N164: 8135809.043 | O164: 346.0453578
A165: 161 | B165: 9718.803387 | C165: 7453.632885 | K165: 800 | L165: 8048559.51 | M165: 7910574.602 | N165: 8186544.418 | O165: 344.962271
A166: 162 | B166: 6539.491115 | C166: 7470.11698 | K166: 805 | L166: 8098863.007 | M166: 7960447.567 | N166: 8237278.447 | O166: 343.8892909
A167: 163 | B167: 9940.024386 | C167: 7477.583635 | K167: 810 | L167: 8149166.504 | M167: 8010321.868 | N167: 8288011.14 | O167: 342.8262612
A168: 164 | B168: 6963.25127 | C168: 7484.165037 | K168: 815 | L168: 8199470.001 | M168: 8060197.492 | N168: 8338742.51 | O168: 341.773029
A169: 165 | B169: 5520.664426 | C169: 7506.825584 | K169: 820 | L169: 8249773.498 | M169: 8110074.425 | N169: 8389472.57 | O169: 340.7294448
A170: 166 | B170: 9284.12771 | C170: 7520.193492 | K170: 825 | L170: 8300076.995 | M170: 8159952.658 | N170: 8440201.332 | O170: 339.6953622
A171: 167 | B171: 9251.012614 | C171: 7524.315969 | K171: 830 | L171: 8350380.492 | M171: 8209832.177 | N171: 8490928.806 | O171: 338.6706378
A172: 168 | B172: 10389.69002 | C172: 7530.873576 | K172: 835 | L172: 8400683.989 | M172: 8259712.971 | N172: 8541655.006 | O172: 337.6551313
A173: 169 | B173: 7210.785472 | C173: 7540.430799 | K173: 840 | L173: 8450987.486 | M173: 8309595.029 | N173: 8592379.942 | O173: 336.6487055
A174: 170 | B174: 11284.78414 | C174: 7541.146278 | K174: 845 | L174: 8501290.982 | M174: 8359478.34 | N174: 8643103.625 | O174: 335.6512256
A175: 171 | B175: 10790.05816 | C175: 7551.845407 | K175: 850 | L175: 8551594.479 | M175: 8409362.891 | N175: 8693826.067 | O175: 334.6625601
A176: 172 | B176: 9260.289864 | C176: 7567.399736 | K176: 855 | L176: 8601897.976 | M176: 8459248.674 | N176: 8744547.279 | O176: 333.6825798
A177: 173 | B177: 11549.04575 | C177: 7569.022859 | K177: 860 | L177: 8652201.473 | M177: 8509135.675 | N177: 8795267.271 | O177: 332.7111583
A178: 174 | B178: 9687.71868 | C178: 7570.350203 | K178: 865 | L178: 8702504.97 | M178: 8559023.886 | N178: 8845986.054 | O178: 331.7481717
A179: 175 | B179: 8220.410421 | C179: 7575.920269 | K179: 870 | L179: 8752808.467 | M179: 8608913.295 | N179: 8896703.639 | O179: 330.7934987
A180: 176 | B180: 10148.63447 | C180: 7597.777022 | K180: 875 | L180: 8803111.964 | M180: 8658803.893 | N180: 8947420.036 | O180: 329.8470204
A181: 177 | B181: 9569.579585 | C181: 7600.393274 | K181: 880 | L181: 8853415.461 | M181: 8708695.668 | N181: 8998135.254 | O181: 328.9086201
A182: 178 | B182: 9026.617733 | C182: 7612.62255 | K182: 885 | L182: 8903718.958 | M182: 8758588.612 | N182: 9048849.304 | O182: 327.9781837
A183: 179 | B183: 5544.105753 | C183: 7621.069512 | K183: 890 | L183: 8954022.455 | M183: 8808482.713 | N183: 9099562.197 | O183: 327.0555991
A184: 180 | B184: 6383.055832 | C184: 7621.731405 | K184: 895 | L184: 9004325.952 | M184: 8858377.963 | N184: 9150273.94 | O184: 326.1407564
A185: 181 | B185: 7792.425249 | C185: 7625.063002 | K185: 900 | L185: 9054629.449 | M185: 8908274.352 | N185: 9200984.545 | O185: 325.2335481
A186: 182 | B186: 13165.93207 | C186: 7639.306497 | K186: 905 | L186: 9104932.946 | M186: 8958171.87 | N186: 9251694.021 | O186: 324.3338685
A187: 183 | B187: 12587.54717 | C187: 7641.01003 | K187: 910 | L187: 9155236.443 | M187: 9008070.508 | N187: 9302402.377 | O187: 323.4416141
A188: 184 | B188: 9577.904729 | C188: 7666.546576 | K188: 915 | L188: 9205539.94 | M188: 9057970.257 | N188: 9353109.622 | O188: 322.5566833
A189: 185 | B189: 7314.574469 | C189: 7678.108511 | K189: 920 | L189: 9255843.437 | M189: 9107871.107 | N189: 9403815.766 | O189: 321.6789764
A190: 186 | B190: 6908.055477 | C190: 7696.631551 | K190: 925 | L190: 9306146.933 | M190: 9157773.05 | N190: 9454520.816 | O190: 320.8083957
A191: 187 | B191: 12419.41025 | C191: 7715.760993 | K191: 930 | L191: 9356450.43 | M191: 9207676.077 | N191: 9505224.783 | O191: 319.9448453
A192: 188 | B192: 13190.69394 | C192: 7722.803867 | K192: 935 | L192: 9406753.927 | M192: 9257580.179 | N192: 9555927.675 | O192: 319.0882311
A193: 189 | B193: 10651.32992 | C193: 7726.381108 | K193: 940 | L193: 9457057.424 | M193: 9307485.348 | N193: 9606629.501 | O193: 318.2384606
A194: 190 | B194: 10032.0506 | C194: 7731.220151 | K194: 945 | L194: 9507360.921 | M194: 9357391.574 | N194: 9657330.268 | O194: 317.3954434
A195: 191 | B195: 13326.58462 | C195: 7739.55957 | K195: 950 | L195: 9557664.418 | M195: 9407298.85 | N195: 9708029.986 | O195: 316.5590903
A196: 192 | B196: 10507.49731 | C196: 7743.638882 | K196: 955 | L196: 9607967.915 | M196: 9457207.168 | N196: 9758728.663 | O196: 315.729314
A197: 193 | B197: 10296.66527 | C197: 7761.194419 | K197: 960 | L197: 9658271.412 | M197: 9507116.518 | N197: 9809426.306 | O197: 314.9060289
A198: 194 | B198: 11371.708 | C198: 7762.212564 | K198: 965 | L198: 9708574.909 | M198: 9557026.894 | N198: 9860122.924 | O198: =(N198-M198)/K198 -> 314.0891507
A199: 195 | B199: 12722.96254 | C199: 7765.882274 | K199: 970 | L199: 9758878.406 | M199: 9606938.287 | N199: 9910818.525 | O199: 313.2785967
A200: 196 | B200: 11500.77655 | C200: 7774.008914 | K200: 975 | L200: 9809181.903 | M200: 9656850.689 | N200: 9961513.117 | O200: 312.4742857
... 805 more rows
